fUSD/lending_fUSD_20250904
["ID","MTS","AMOUNT","RATE_DAILY","PERIOD"]
[383497058,1756957995061,-235.5598217,0.00037948,10]
[383497059,1756957995073,-213000.0,0.00037948,120]
[383497060,1756957995085,-103807.98095416,0.00037948,2]
[383497061,1756957995099,-58683.56677355,0.00037948,60]
[383497062,1756957995113,-31376.11274381,0.00037948,60]
[383497063,1756957995129,-2000.0,0.00037948,71]
[383497064,1756957995143,-1317.0,0.00037948,60]
[383497065,1756957995156,-1319.0,0.00037948,60]
[383497066,1756957995167,-1317.0,0.00037948,60]
[383497067,1756957995181,-1317.0,0.00037948,60]
[383497068,1756957995196,-1317.0,0.00037948,60]
[383497069,1756957995209,-5547.3891113,0.00037948,20]
[383497070,1756957995224,-991.0502907,0.00037948,20]
[383497071,1756957995238,-5045.0,0.00037948,60]
[383497072,1756957995252,-5048.0,0.00037948,60]
[383497073,1756957995265,-5045.0,0.00037948,60]
[383497074,1756957995279,-5045.0,0.00037948,60]
[383497075,1756957995292,-5045.0,0.00037948,60]
[383497076,1756957995305,-28811.48251757,0.00037948,30]
[383497077,1756957995319,-200000.0,0.00037948,120]
[383497078,1756957995333,-10000.0,0.00037948,30]
[383497079,1756957995346,-19250.80878865,0.00037948,5]
[383497080,1756957995357,-25114.0017586,0.00037948,5]
[383497081,1756957995370,-175.0,0.00037948,120]
[383497082,1756957995384,-168.0,0.00037948,60]
[383497083,1756957995398,-176.37783184,0.00037948,60]
[383497084,1756957995409,-2758.297,0.00037948,33]
[383497085,1756957995420,-449.13014655,0.00037948,120]
[383497086,1756957995432,-286.02296221,0.00037948,30]
[383497087,1756957995447,-153.20702864,0.00037948,30]
[383497088,1756957995458,-167.33385749,0.00037948,30]
[383497089,1756957995476,-282.87755834,0.00037948,120]
[383497090,1756957995488,-363.30124877,0.00037948,120]
[383497091,1756957995500,-735.7274678,0.00037948,30]
[383497092,1756957995512,-155.53061662,0.00037948,90]
[383497093,1756957995524,-1517.08735111,0.00037948,120]
[383497094,1756957995536,-347.09935025,0.00037948,60]
[383497095,1756957995549,-1784.03590926,0.00037948,120]
[383497096,1756957995561,-1165.1914591,0.00037948,56]
[383497097,1756957995574,-359.857437,0.00037948,120]
[383497098,1756957995587,-255.0,0.00037948,30]
[383497099,1756957995599,-3695.0,0.00037948,30]
[383497100,1756957995612,-383.59022236,0.00037948,30]
[383497101,1756957995624,-2000.0,0.00037948,120]
[383497102,1756957995637,-248.4639411,0.00037948,30]
[383497103,1756957995649,-300.0,0.00037948,30]
[383497104,1756957995662,-300.0,0.00037948,30]
[383497105,1756957995674,-300.0,0.00037948,30]
[383497106,1756957995686,-300.0,0.00037948,30]
[383497107,1756957995697,-300.0,0.00037948,30]
[383497108,1756957995710,-300.0,0.00037948,30]
[383497109,1756957995722,-300.0,0.00037948,30]
[383497110,1756957995734,-300.0,0.00037948,30]
[383497111,1756957995746,-300.0,0.00037948,30]
[383497112,1756957995758,-300.0,0.00037948,30]
[383497113,1756957995770,-300.0,0.00037948,30]
[383497114,1756957995782,-300.0,0.00037948,30]
[383497115,1756957995796,-300.0,0.00037948,30]
[383497116,1756957995809,-1013.9727,0.00037948,120]
[383497117,1756957995821,-161.20315792,0.00037948,120]
[383497118,1756957995834,-399.21765795,0.00037948,30]
[383497119,1756957995847,-5751.13369338,0.00037948,120]
[383497120,1756957995859,-172.38093192,0.00037948,2]
[383497121,1756957995874,-510.0,0.00037948,30]
[383497122,1756957995887,-276.56,0.00037948,30]
[383497123,1756957995899,-5380.7,0.00037948,5]
[383497124,1756957995911,-1850.0,0.00037948,30]
[383497125,1756957995924,-245.04,0.00037948,30]
[383497126,1756957995936,-621.41,0.00037948,30]
[383497127,1756957995949,-10905.33968394,0.00037948,15]
[383497128,1756957995961,-395.4793489,0.00037948,2]
[383497129,1756957995972,-204176.99088128,0.00037948,2]
[383497130,1756957995984,-123409.38607866,0.00037948,2]
[383497131,1756957995995,-10752.15327571,0.00037948,3]
[383497132,1756957996007,-1210.0,0.00037948,2]
[383497133,1756957996020,-711.55236419,0.00037948,2]
[383497134,1756957996032,-366.39964326,0.00037948,2]
[383497135,1756957996045,-352.39930075,0.00037948,2]
[383497136,1756957996057,-630.08353462,0.00037948,6]
[383497137,1756957996069,-2734.97800994,0.00037948,2]
[383497138,1756957996081,-195939.6145701,0.00037948,2]
[383497139,1756957996094,-153.07708491,0.00037948,2]
[383497140,1756957996108,-1697.03154494,0.00037948,2]
[383497141,1756957996120,-252.05410078,0.00037948,2]
[383497142,1756957996132,-166.34772578,0.00037948,2]
[383497143,1756957996144,-660.85221067,0.00037948,2]
[383497144,1756957996156,-1001.86238718,0.00037948,2]
[383497145,1756957996168,-1276.09014651,0.00037948,2]
[383497146,1756957996181,-246.19411852,0.00037948,2]
[383497147,1756957996193,-7805.78248331,0.00037948,2]
[383497148,1756957996205,-163.63948778,0.00037948,2]
[383497149,1756957996217,-1053.75554195,0.00037948,2]
[383497150,1756957996229,-551.6454479,0.00037948,2]
[383497151,1756957996240,-9337.51658488,0.00037948,2]
[383497152,1756957996253,-1326.55585946,0.00037948,2]
[383497153,1756957996265,-3458.06751424,0.00037948,2]
[383497154,1756957996277,-8125.67026521,0.00037948,2]
[383497155,1756957996289,-2221.0864634,0.00037948,2]
[383497156,1756957996301,-23064.34657112,0.00037948,2]
[383497157,1756957996315,-756.33756374,0.00037948,2]
[383497158,1756957996326,-12974.77280716,0.00037948,2]
[383497159,1756957996339,-1942.06662496,0.00037948,2]
[383497160,1756957996350,-186.21103168,0.00037948,2]
[383497161,1756957996362,-5076.1634163,0.00037948,2]
[383497162,1756957996374,-15060.75748495,0.00037948,3]
[383497163,1756957996386,-100141.46504241,0.00037948,2]
[383497164,1756957996606,-643.0,0.00037948,2]
[383497165,1756957996619,-4793.98154191,0.00037948,4]
[383497166,1756957996633,-233029.8736357,0.00037948,2]
[383497167,1756957996645,-3276.95609301,0.00037948,2]
[383497168,1756957996656,-177.34022892,0.00037948,2]
[383497169,1756957996668,-156.43972248,0.00037948,2]
[383497170,1756957996680,-182.27909385,0.00037948,2]
[383497171,1756957996692,-188.88478745,0.00037948,2]
[383497172,1756957996703,-1482.96573526,0.00037948,2]
[383497173,1756957996714,-550.0,0.00037948,2]
[383497174,1756957996725,-10000.0,0.00037948,2]
[383497175,1756957996736,-1019.83268661,0.00037948,2]
[383497176,1756957996749,-10816.65772918,0.00037948,2]
[383497177,1756957996760,-153177.04090954,0.00037948,2]
[383497178,1756957999833,-1014.66947938,0.000199,2]
[383497179,1756957999844,-400.0,0.00021917,2]
[383497180,1756957999853,-308.63052062,0.00021917,2]
[383497181,1756958001111,-1101.675,0.00020406,2]
[383497182,1756958007257,-28.95881652,0.00019498,2]
[383497183,1756958008239,-57.91763304,0.00019498,2]
[383497184,1756958008724,-115.83526608,0.00019498,2]
[383497185,1756958009257,-231.67053216,0.00019498,2]
[383497186,1756958009555,-36.65893568,0.00019498,2]
[383497187,1756958010321,153.82,0.00010236,2]
[383497188,1756958010362,153.82,0.00011374,2]
[383497189,1756958010415,153.82,0.00012511,2]
[383497190,1756958010468,153.82,0.00013649,2]
[383497191,1756958010523,153.82,0.00014786,2]
[383497192,1756958010565,153.82,0.00015923,2]
[383497193,1756958010598,153.82,0.00017061,2]
[383497194,1756958010640,153.82,0.00018198,2]
[383497195,1756958011522,-153.82,0.00019335,2]
[383497196,1756958020463,561.80086111,0.00018197,2]
[383497197,1756958095870,174.18,0.00013699,2]
[383497199,1756958358828,163.8829347,0.00030137,120]
[383497200,1756958603432,2051.39193,0.00029453,120]
[383497202,1756958709899,-164.49120188,0.00019253,2]
[383497203,1756958724423,-4399.74579897,0.00019189,2]
[383497204,1756958731466,-223.77300307,0.00019189,2]
[383497205,1756958739527,-223.5731633,0.00019189,2]
[383497206,1756958746559,-354.55248946,0.00019189,2]
[383497207,1756958753616,-498.73802852,0.00019189,2]
[383497208,1756958761512,-339.96278004,0.00019189,2]
[383497209,1756958768598,-161.20614154,0.00019189,2]
[383497210,1756958776111,-279.3620852,0.00019189,2]
[383497211,1756958783109,-292.07855379,0.00019189,2]
[383497212,1756958786412,160.0,0.00019122,7]
[383497213,1756958791305,-223.77300307,0.00019189,2]
[383497214,1756958798521,-173.8399483,0.00019188,2]
[383497215,1756958805531,-12.3800517,0.00019188,2]
[383497216,1756958805558,-313.78,0.00019188,2]
[383497217,1756958812576,-232.9590152,0.00019188,2]
[383497218,1756958820139,-244.8519696,0.00019188,2]
[383497219,1756958827771,-22.1890152,0.00019188,2]
[383497220,1756958827810,-183.63533813,0.00019188,2]
[383497221,1756958835865,-310.45869454,0.00019188,2]
[383497222,1756958842856,-5.90596733,0.00019188,2]
[383497223,1756958842901,-470.40806534,0.00019188,2]
[383497224,1756958842952,-29.59193466,0.00019188,2]
[383497225,1756958852657,-152.2790152,0.00019188,2]
[383497226,1756958859692,-164.3226405,0.00019188,2]
[383497227,1756958867307,-16.6016557,0.00019188,2]
[383497228,1756958867331,-166.7966886,0.00019188,2]
[383497229,1756958874294,-187.28058872,0.00019188,2]
[383497230,1756958880977,-418.11758425,0.0001911,2]
[383497231,1756958881319,-178.40191152,0.0001911,2]
[383497232,1756958883214,-232.91091833,0.0001911,2]
[383497233,1756958888726,-357.24,0.0001911,2]
[383497234,1756958895869,-70.42839934,0.0001911,2]
[383497235,1756958895892,-125.72118656,0.0001911,2]
[383497236,1756958902921,-223.77300307,0.00019188,2]
[383497237,1756958909913,-88.94640821,0.00019188,2]
[383497238,1756958909947,-30.02862979,0.00019188,2]
[383497239,1756958916948,-254.73979791,0.00019187,2]
[383497240,1756958922054,-167.12611263,0.00019133,2]
[383497241,1756958923954,-194.19079911,0.00019133,2]
[383497242,1756958925083,-275.10941311,0.00019133,2]
[383497243,1756958927286,-154.62,0.00019133,2]
[383497244,1756958931384,-221.32985767,0.00019133,2]
[383497245,1756958939362,-187.90014233,0.00019133,2]
[383497246,1756958947151,-432.14726218,0.00019133,2]
[383497247,1756958950358,179.02,9.544e-05,2]
[383497248,1756958950637,179.02,0.0001193,2]
[383497249,1756958950843,179.02,0.00014317,2]
[383497250,1756958951049,179.02,0.00016703,2]
[383497251,1756958955454,-175.31114126,0.00019089,2]
[383497252,1756958963967,-3.70885874,0.00019089,2]
[383497253,1756958964005,-346.66911718,0.00019133,2]
[383497254,1756958971404,-43.4386402,0.0001905,2]
[383497255,1756958971429,-156.5613598,0.0001905,2]
[383497256,1756958979297,-309.6462611,0.00019133,2]
[383497257,1756958987702,-400.0,0.00019133,2]
[383497258,1756958995663,-400.0,0.00019133,2]
[383497259,1756959003913,-400.0,0.00019133,2]
[383497260,1756959011521,-400.0,0.00019133,2]
[383497261,1756959019475,-400.0,0.00019133,2]
[383497262,1756959026999,-293.40512308,0.00019133,2]
[383497264,1756959031401,-710.178214,0.00019133,2]
[383497265,1756959031413,-710.11,0.00019133,2]
[383497266,1756959031457,-894.43769761,0.00019133,2]
[383497267,1756959031467,-250.0,0.00019159,2]
[383497268,1756959031476,-1200.0,0.00019186,2]
[383497269,1756959031486,-164.0,0.00019186,2]
[383497270,1756959031495,-245.26020209,0.00019187,2]
[383497271,1756959031505,-500.0,0.00019187,2]
[383497272,1756959031515,-500.0,0.00019187,2]
[383497273,1756959031524,-608.86002468,0.00019187,2]
[383497274,1756959031533,-2570.07519629,0.00019189,2]
[383497275,1756959031552,-2751.27282997,0.00019189,2]
[383497276,1756959031571,-430.07267228,0.00019189,2]
[383497277,1756959031671,-150.3542545,0.00019189,2]
[383497278,1756959031681,-250.0,0.0001919,2]
[383497279,1756959031690,-35.50879812,0.00019253,2]
[383497280,1756959031701,-150.0,0.00019545,2]
[383497281,1756959031710,-152.99,0.00019545,2]
[383497282,1756959031719,-311.17,0.00019579,2]
[383497283,1756959031728,-13335.25,0.00019665,2]
[383497284,1756959031738,-610.0,0.00019711,2]
[383497285,1756959031747,-179.61,0.00019712,2]
[383497286,1756959031759,-672.83668422,0.00019802,2]
[383497287,1756959031768,-10624.63419562,0.00019803,2]
[383497288,1756959031779,-2647.52580438,0.00019803,2]
[383497290,1756959031788,-531.04,0.00019871,2]
[383497292,1756959031797,-3569.03,0.00020061,2]
[383497294,1756959031806,-968.92,0.00020146,2]
[383497296,1756959031816,-162.44873337,0.00020151,5]
[383497298,1756959031825,-218.0,0.00020155,2]
[383497300,1756959031834,-98860.27137072,0.00020156,2]
[383497304,1756959031845,-498.01219548,0.00020156,2]
[383497306,1756959031857,-2414.39693833,0.00020156,2]
[383497308,1756959031869,-1804.60442984,0.00020156,2]
[383497392,1756959037356,-234.31778052,0.00019132,2]
[383497393,1756959037366,-106465.11506563,0.00020156,2]
[383497394,1756959037375,-327.34916689,0.00020162,2]
[383497395,1756959037386,-203.74354746,0.00020162,2]
[383497396,1756959037395,-2172.03,0.00020167,2]
[383497397,1756959037404,-500.44338955,0.00020173,2]
[383497398,1756959037414,-591.63,0.00020185,2]
[383497399,1756959037424,-174.18,0.00020187,2]
[383497400,1756959037433,-968.92,0.00020204,2]
[383497401,1756959037443,-300.0,0.00020207,2]
[383497402,1756959037453,-4031.13,0.00020208,2]
[383497403,1756959037462,-273103.90062049,0.00020214,2]
[383497404,1756959037472,-250.0,0.00020262,2]
[383497405,1756959037481,-183.45738851,0.00020273,2]
[383497406,1756959037490,-500.64019375,0.00020273,2]
[383497407,1756959037499,-500.68428082,0.00020273,2]
[383497408,1756959037509,-666.0,0.00020354,3]
[383497409,1756959037518,-150.0,0.00020797,2]
[383497410,1756959037528,-151.0,0.00020921,2]
[383497411,1756959037537,-151.0,0.00020921,2]
[383497412,1756959037546,-1680.0,0.0002101,2]
[383497413,1756959037555,-500.0,0.0002102,3]
[383497414,1756959037566,-300.0,0.0002102,2]
[383497415,1756959037577,-286.0,0.0002102,2]
[383497416,1756959037588,-195.0,0.0002102,2]
[383497417,1756959037598,-250.0,0.00021046,2]
[383497418,1756959037608,-591.63,0.00021194,2]
[383497419,1756959037619,-745.83983887,0.00021265,2]
[383497420,1756959037628,-179.61,0.00021339,2]
[383497421,1756959037640,-1687.26139438,0.00021418,2]
[383497422,1756959037650,-549.8269,0.00021482,2]
[383497423,1756959037659,-1000.0,0.00021482,2]
[383497424,1756959037669,-3614.38196037,0.00021531,2]
[383497425,1756959037678,-300.0,0.00021577,2]
[383497426,1756959037686,-800.0,0.000219,7]
[383497427,1756959037694,-400.0,0.00021917,2]
[383497428,1756959037703,-400.0,0.00021917,2]
[383497429,1756959037712,-400.0,0.00021917,2]
[383497430,1756959037721,-400.0,0.00021917,2]
[383497431,1756959037730,-400.0,0.00021917,2]
[383497432,1756959037739,-400.0,0.00021917,2]
[383497433,1756959037747,-400.0,0.00021917,2]
[383497434,1756959037756,-400.0,0.00021917,2]
[383497435,1756959037765,-400.0,0.00021917,2]
[383497437,1756959037775,-400.0,0.00021917,2]
[383497439,1756959037784,-400.0,0.00021917,2]
[383497441,1756959037793,-401.35291353,0.00021917,2]
[383497443,1756959037802,-400.0,0.00021917,2]
[383497445,1756959037811,-400.0,0.00021917,2]
[383497446,1756959037820,-434.47,0.00021917,2]
[383497448,1756959037829,-400.0,0.00021917,2]
[383497450,1756959037838,-400.0,0.00021917,2]
[383497452,1756959037848,-400.0,0.00021917,2]
[383497453,1756959037858,-400.0,0.00021917,2]
[383497454,1756959037868,-400.0,0.00021917,2]
[383497455,1756959037878,-400.0,0.00021917,2]
[383497456,1756959037887,-400.0,0.00021917,2]
[383497457,1756959037897,-400.0,0.00021917,2]
[383497458,1756959037907,-400.0,0.00021917,2]
[383497459,1756959037916,-400.0,0.00021917,2]
[383497460,1756959037927,-400.0,0.00021917,2]
[383497461,1756959037936,-400.0,0.00021917,2]
[383497462,1756959037949,-400.0,0.00021917,2]
[383497463,1756959037958,-405.8,0.00021917,2]
[383497464,1756959037967,-400.0,0.00021917,2]
[383497465,1756959037976,-400.0,0.00021917,2]
[383497466,1756959037986,-400.0,0.00021917,2]
[383497467,1756959037995,-400.0,0.00021917,2]
[383497468,1756959038005,-406.57760664,0.00021917,2]
[383497469,1756959038014,-400.0,0.00021917,2]
[383497470,1756959038023,-400.0,0.00021917,2]
[383497471,1756959038034,-400.0,0.00021917,2]
[383497472,1756959038043,-400.0,0.00021917,2]
[383497473,1756959038052,-527.14559939,0.00021917,2]
[383497474,1756959038062,-400.0,0.00021917,2]
[383497475,1756959038071,-400.0,0.00021917,2]
[383497476,1756959038080,-400.0,0.00021917,2]
[383497477,1756959038090,-400.0,0.00021917,2]
[383497478,1756959038099,-400.0,0.00021917,2]
[383497479,1756959038108,-400.0,0.00021917,2]
[383497480,1756959038118,-465.47,0.00021917,2]
[383497481,1756959038127,-400.0,0.00021917,2]
[383497482,1756959038136,-400.0,0.00021917,2]
[383497483,1756959038146,-400.0,0.00021917,2]
[383497484,1756959038155,-400.0,0.00021917,2]
[383497485,1756959038165,-400.0,0.00021917,2]
[383497486,1756959038174,-400.0,0.00021917,2]
[383497487,1756959038183,-400.0,0.00021917,2]
[383497488,1756959038193,-400.0,0.00021917,2]
[383497489,1756959038202,-400.0,0.00021917,2]
[383497490,1756959038212,-400.0,0.00021917,2]
[383497491,1756959038221,-402.90799224,0.00021917,2]
[383497492,1756959038230,-456.5,0.00021917,2]
[383497493,1756959038240,-400.0,0.00021917,2]
[383497494,1756959038249,-402.0726209,0.00021917,2]
[383497495,1756959038259,-400.0,0.00021917,2]
[383497496,1756959038268,-400.0,0.00021917,2]
[383497497,1756959038277,-400.0,0.00021917,2]
[383497498,1756959038288,-400.0,0.00021917,2]
[383497499,1756959038297,-400.0,0.00021917,2]
[383497500,1756959038307,-400.0,0.00021917,2]
[383497501,1756959038316,-400.0,0.00021917,2]
[383497502,1756959038327,-400.0,0.00021917,2]
[383497503,1756959038336,-2931.7,0.00021917,2]
[383497504,1756959038346,-400.0,0.00021917,2]
[383497505,1756959038355,-400.0,0.00021917,2]
[383497506,1756959038365,-400.0,0.00021917,2]
[383497507,1756959038374,-5000.0,0.00021918,2]
[383497508,1756959038383,-574.97830712,0.00022066,7]
[383497509,1756959038393,-400.0,0.0002209,2]
[383497510,1756959038403,-400.0,0.0002209,2]
[383497511,1756959038412,-400.0,0.0002209,2]
[383497512,1756959038421,-400.0,0.0002209,2]
[383497513,1756959038431,-422.05,0.0002209,2]
[383497514,1756959038441,-400.0,0.0002209,2]
[383497515,1756959038450,-400.0,0.0002209,2]
[383497516,1756959038459,-400.0,0.0002209,2]
[383497517,1756959038469,-400.0,0.0002209,2]
[383497518,1756959038478,-400.0,0.0002209,2]
[383497519,1756959038487,-400.0,0.0002209,2]
[383497520,1756959038496,-400.0,0.0002209,2]
[383497521,1756959038506,-400.0,0.0002209,2]
[383497522,1756959038515,-400.0,0.0002209,2]
[383497523,1756959038524,-400.0,0.0002209,2]
[383497524,1756959038534,-400.0,0.0002209,2]
[383497525,1756959038543,-400.0,0.0002209,2]
[383497526,1756959038554,-408.56721364,0.0002209,2]
[383497527,1756959038563,-400.0,0.0002209,2]
[383497528,1756959038572,-400.0,0.0002209,2]
[383497529,1756959038581,-400.0,0.0002209,2]
[383497530,1756959038590,-400.0,0.0002209,2]
[383497531,1756959038599,-400.0,0.0002209,2]
[383497532,1756959038609,-400.0,0.0002209,2]
[383497533,1756959038620,-1000.0,0.0002209,2]
[383497534,1756959038630,-400.0,0.0002209,2]
[383497535,1756959038639,-400.0,0.0002209,2]
[383497536,1756959038649,-400.0,0.0002209,2]
[383497537,1756959038659,-400.0,0.0002209,2]
[383497538,1756959038668,-400.0,0.0002209,2]
[383497539,1756959038677,-400.0,0.0002209,2]
[383497540,1756959038687,-400.0,0.0002209,2]
[383497541,1756959038696,-400.0,0.0002209,2]
[383497542,1756959038705,-400.0,0.0002209,2]
[383497543,1756959038714,-400.0,0.0002209,2]
[383497544,1756959038723,-400.0,0.0002209,2]
[383497545,1756959038733,-532.67044427,0.0002209,2]
[383497546,1756959038742,-267.92332781,0.0002209,2]
[383497547,1756959038751,-400.0,0.0002209,2]
[383497548,1756959038759,-400.0,0.0002209,2]
[383497549,1756959038768,-400.0,0.0002209,2]
[383497550,1756959038777,-400.0,0.0002209,2]
[383497551,1756959038787,-400.0,0.0002209,2]
[383497552,1756959038796,-177.75857428,0.0002209,2]
[383497553,1756959038805,-400.0,0.0002209,2]
[383497554,1756959038815,-400.0,0.0002209,2]
[383497555,1756959038826,-400.0,0.0002209,2]
[383497556,1756959038836,-400.0,0.0002209,2]
[383497557,1756959038847,-632.22,0.0002209,2]
[383497558,1756959038858,-400.0,0.0002209,2]
[383497559,1756959038868,-400.0,0.0002209,2]
[383497560,1756959038878,-400.0,0.0002209,2]
[383497561,1756959038887,-400.0,0.0002209,2]
[383497562,1756959038896,-400.0,0.0002209,2]
[383497563,1756959038905,-406.39848353,0.0002209,2]
[383497564,1756959038915,-1520.76,0.0002209,2]
[383497565,1756959038924,-400.0,0.0002209,2]
[383497566,1756959038934,-400.0,0.0002209,2]
[383497567,1756959038944,-400.0,0.0002209,2]
[383497568,1756959038954,-400.0,0.0002209,2]
[383497569,1756959038963,-400.0,0.0002209,2]
[383497570,1756959038973,-400.0,0.0002209,2]
[383497571,1756959038982,-400.0,0.0002209,2]
[383497572,1756959038991,-431.4,0.0002209,2]
[383497573,1756959039001,-400.0,0.0002209,2]
[383497574,1756959039010,-307.00432915,0.0002209,2]
[383497575,1756959039020,-400.0,0.0002209,2]
[383497576,1756959039029,-299.01259955,0.0002209,2]
[383497577,1756959039039,-400.0,0.0002209,2]
[383497578,1756959039048,-400.0,0.0002209,2]
[383497579,1756959039057,-400.0,0.0002209,2]
[383497580,1756959039067,-400.0,0.0002209,2]
[383497581,1756959039076,-404.82925917,0.0002209,2]
[383497582,1756959039085,-400.0,0.0002209,2]
[383497583,1756959039095,-445.81,0.0002209,2]
[383497584,1756959039104,-400.0,0.0002209,2]
[383497585,1756959039113,-403.32380198,0.0002209,2]
[383497586,1756959039123,-400.0,0.0002209,2]
[383497587,1756959039132,-400.0,0.0002209,2]
[383497588,1756959039141,-400.0,0.0002209,2]
[383497589,1756959039151,-400.0,0.0002209,2]
[383497590,1756959039160,-191047.5943,0.00022091,2]
[383497591,1756959039170,-327.3491668,0.00022106,2]
[383497592,1756959039179,-400.0,0.00022191,2]
[383497593,1756959039188,-406.88461273,0.00022191,2]
[383497594,1756959039197,-400.0,0.00022191,2]
[383497595,1756959039206,-400.0,0.00022191,2]
[383497596,1756959039215,-431.3729198,0.00022191,2]
[383497597,1756959039225,-400.0,0.00022191,2]
[383497598,1756959039234,-403.02833392,0.00022191,2]
[383497599,1756959039243,-400.0,0.00022191,2]
[383497600,1756959039252,-404.98246665,0.00022191,2]
[383497601,1756959039262,-400.0,0.00022191,2]
[383497602,1756959039271,-400.0,0.00022191,2]
[383497603,1756959039280,-400.0,0.00022191,2]
[383497604,1756959039290,-434.47,0.00022191,2]
[383497605,1756959039299,-201.05250591,0.00022191,2]
[383497606,1756959039308,-400.0,0.00022191,2]
[383497607,1756959039317,-400.0,0.00022191,2]
[383497608,1756959039326,-400.0,0.00022191,2]
[383497609,1756959039337,-400.0,0.00022191,2]
[383497610,1756959039347,-400.0,0.00022191,2]
[383497611,1756959039357,-404.26221928,0.00022191,2]
[383497612,1756959039366,-418.41461844,0.00022191,2]
[383497613,1756959039375,-494.84329685,0.00022191,2]
[383497614,1756959039386,-400.0,0.00022191,2]
[383497615,1756959039395,-465.47,0.00022191,2]
[383497616,1756959039404,-401.83159258,0.00022191,2]
[383497617,1756959039413,-400.0,0.00022191,2]
[383497618,1756959039422,-401.49082352,0.00022191,2]
[383497619,1756959039432,-400.0,0.00022191,2]
[383497620,1756959039441,-400.0,0.00022191,2]
[383497621,1756959039450,-178.10396415,0.00022191,2]
[383497622,1756959039459,-400.0,0.00022191,2]
[383497623,1756959039469,-400.0,0.00022191,2]
[383497624,1756959039478,-400.0,0.00022191,2]
[383497625,1756959039487,-456.5,0.00022191,2]
[383497626,1756959039496,-400.0,0.00022191,2]
[383497627,1756959039505,-400.0,0.00022191,2]
[383497628,1756959039514,-400.0,0.00022191,2]
[383497629,1756959039524,-400.0,0.00022191,2]
[383497630,1756959039534,-400.0,0.00022191,2]
[383497631,1756959039543,-400.0,0.00022191,2]
[383497632,1756959039552,-400.0,0.00022191,2]
[383497633,1756959039561,-2931.7,0.00022191,2]
[383497634,1756959039571,-400.0,0.00022191,2]
[383497635,1756959039580,-400.0,0.00022191,2]
[383497636,1756959039589,-591.63,0.00022203,2]
[383497637,1756959039599,-150.0,0.0002225,2]
[383497638,1756959039608,-205.0,0.0002225,2]
[383497639,1756959039617,-253.0,0.0002225,2]
[383497640,1756959039626,-407.39222275,0.00022286,5]
[383497641,1756959039636,-400.0,0.00022364,2]
[383497642,1756959039645,-400.0,0.00022364,2]
[383497643,1756959039654,-400.0,0.00022364,2]
[383497644,1756959039664,-400.0,0.00022364,2]
[383497645,1756959039673,-422.05,0.00022364,2]
[383497646,1756959039682,-400.0,0.00022364,2]
[383497647,1756959039691,-400.0,0.00022364,2]
[383497648,1756959039701,-400.0,0.00022364,2]
[383497649,1756959039710,-400.0,0.00022364,2]
[383497650,1756959039719,-400.0,0.00022364,2]
[383497651,1756959039728,-402.68670537,0.00022364,2]
[383497652,1756959039737,-404.32239932,0.00022364,2]
[383497653,1756959039745,-400.0,0.00022364,2]
[383497654,1756959039754,-400.0,0.00022364,2]
[383497655,1756959039763,-400.0,0.00022364,2]
[383497656,1756959039772,-400.0,0.00022364,2]
[383497657,1756959039781,-400.0,0.00022364,2]
[383497658,1756959039790,-242.97836763,0.00022364,2]
[383497659,1756959039799,-400.0,0.00022364,2]
[383497660,1756959039808,-400.0,0.00022364,2]
[383497661,1756959039818,-400.0,0.00022364,2]
[383497662,1756959039827,-400.0,0.00022364,2]